[Event "44th Chess Olympiad Women 2022"]
[Site "Chennai"]
[Date "2022.08.05"]
[Round "7.40"]
[White "Nansubuga, Gloria"]
[Black "Gjergji, Rozana"]
[Result "0-1"]
[WhiteElo "1538"]
[BlackElo "1920"]
[Annotator "NA RC"]
[PlyCount "76"]
[EventDate "2022.??.??"]
[TimeControl "60"]

1. e4 {[%emt 0:00:06]} d5 {[%emt 0:00:09]} 2. exd5 {[%emt 0:00:08]} Qxd5 {
[%emt 0:00:01]} 3. Nc3 {[%emt 0:00:20]} Qa5 {[%emt 0:00:09]} 4. d4 {[%emt 0:00:
00]} c6 {[%emt 0:00:12]} 5. Bc4 {[%emt 0:00:12]} Nf6 {[%emt 0:00:53]} 6. Nf3 {
[%emt 0:00:11]} Bf5 {[%emt 0:00:40]} 7. Bd2 {[%emt 0:00:17]} e6 {[%emt 0:00:35]
} 8. Qe2 {[%emt 0:00:23]} Nbd7 {[%emt 0:04:37]} 9. d5 {[%emt 0:06:18]} cxd5 {
[%emt 0:09:00]} 10. Nxd5 {[%emt 0:00:31]} Qd8 {[%emt 0:00:16]} 11. Nxf6+ {
[%emt 0:03:27]} gxf6 {[%emt 0:04:02]} 12. O-O-O {[%emt 0:01:07]} Qc7 {[%emt 0:
00:00]} 13. Nd4 {[%emt 0:01:32]} Bg6 {[%emt 0:03:25]} 14. Nxe6 {[%emt 0:04:18]}
fxe6 {[%emt 0:00:12]} 15. Qxe6+ {[%emt 0:00:06]} Be7 {[%emt 0:00:04]} 16. Bb4 {
[%emt 0:03:14]} Ne5 {[%emt 0:01:25]} 17. Bb5+ {[%emt 0:00:05]} Kf8 {[%emt 0:00:
00]} 18. Qxf6+ {[%emt 0:03:03]} Kg8 {[%emt 0:01:51]} 19. Qe6+ {[%emt 0:01:40]}
Nf7 {[%emt 0:00:12]} 20. Bc3 {[%emt 0:01:04]} Bb4 {[%emt 0:01:40]} 21. Rd7 {
[%emt 0:05:09]} Qf4+ {[%emt 0:01:18]} 22. Kb1 {[%emt 0:01:38]} Bxc3 {[%emt 0:
00:00]} 23. bxc3 {[%emt 0:01:46]} Kg7 {[%emt 0:10:04]} 24. Rhd1 {[%emt 0:16:59]
} Rhe8 {[%emt 0:05:58]} 25. Qb3 {[%emt 0:02:37]} a6 {[%emt 0:14:13]} 26. R7d4 {
[%emt 0:03:02]} Re4 {[%emt 0:02:45]} 27. f3 {[%emt 0:13:41]} Rxd4 {[%emt 0:00:
00]} 28. Rxd4 {[%emt 0:00:05]} Qxh2 {[%emt 0:00:29]} 29. Bc4 {[%emt 0:03:53]}
Rf8 {[%emt 0:03:11]} 30. Bd3 {[%emt 0:08:33]} Qxg2 {[%emt 0:03:03]} 31. Bxg6 {
[%emt 0:06:29]} hxg6 {[%emt 0:00:08]} 32. Qxb7 {[%emt 0:04:06]} Qg3 {[%emt 0:
00:00]} 33. Qxa6 {[%emt 0:01:54]} Qxf3 {[%emt 0:00:58]} 34. Qa7 {[%emt 0:02:13]
} Qxc3 {[%emt 0:00:16]} 35. Rd7 {[%emt 0:00:59]} Kg8 {[%emt 0:02:48]} 36. Qc7 {
[%emt 0:03:11]} Qb4+ {[%emt 0:02:18]} 37. Kc1 {[%emt 0:02:20]} Re8 {[%emt 0:00:
00]} 38. c3 {[%emt 0:01:19]} Qa3+ {[%emt 0:00:11]} 0-1

[Event "44th Chess Olympiad Women 2022"]
[Site "Chennai"]
[Date "2022.08.05"]
[Round "7.40"]
[White "Omeri, Eklea"]
[Black "Kawuma Patricia"]
[Result "1/2-1/2"]
[WhiteElo "1718"]
[BlackElo "1653"]
[Annotator "NA RC"]
[PlyCount "141"]
[EventDate "2022.??.??"]
[TimeControl "60"]

1. d4 {[%emt 0:00:17]} d5 {[%emt 0:00:16]} 2. c4 {[%emt 0:00:21]} e6 {[%emt 0:
00:00]} 3. Nc3 {[%emt 0:00:50]} Nf6 {[%emt 0:00:09]} 4. Nf3 {[%emt 0:00:37]}
Be7 {[%emt 0:00:19]} 5. Bg5 {[%emt 0:00:36]} h6 {[%emt 0:00:17]} 6. Bxf6 {
[%emt 0:00:35]} Bxf6 {[%emt 0:00:09]} 7. e3 {[%emt 0:00:41]} O-O {[%emt 0:00:
00]} 8. cxd5 {[%emt 0:01:31]} exd5 {[%emt 0:00:13]} 9. Bd3 {[%emt 0:00:58]} c6
{[%emt 0:02:21]} 10. h3 {[%emt 0:03:36]} Be6 {[%emt 0:01:33]} 11. Qc2 {[%emt 0:
00:00]} Nd7 {[%emt 0:00:22]} 12. b4 {[%emt 0:03:31]} Nb6 {[%emt 0:00:31]} 13.
a4 {[%emt 0:04:20]} Nc4 {[%emt 0:01:59]} 14. O-O {[%emt 0:01:19]} a6 {[%emt 0:
00:00]} 15. b5 {[%emt 0:04:27]} cxb5 {[%emt 0:00:43]} 16. axb5 {[%emt 0:00:10]}
a5 {[%emt 0:00:14]} 17. Rfc1 {[%emt 0:13:46]} Rc8 {[%emt 0:00:35]} 18. Qa2 {
[%emt 0:02:11]} b6 {[%emt 0:00:19]} 19. Nd2 {[%emt 0:13:15]} Nxd2 {[%emt 0:00:
00]} 20. Qxd2 {[%emt 0:00:07]} Be7 {[%emt 0:01:15]} 21. Na4 {[%emt 0:05:47]}
Qd6 {[%emt 0:03:32]} 22. Rxc8 {[%emt 0:03:30]} Rxc8 {[%emt 0:00:27]} 23. Rc1 {
[%emt 0:01:07]} Rxc1+ {[%emt 0:03:50]} 24. Qxc1 {[%emt 0:00:08]} Bd8 {[%emt 0:
00:00]} 25. Qc3 {[%emt 0:04:59]} Kf8 {[%emt 0:04:32]} 26. f4 {[%emt 0:02:31]}
Bc7 {[%emt 0:02:35]} 27. Kh2 {[%emt 0:03:16]} g5 {[%emt 0:14:04]} 28. g3 {
[%emt 0:00:32]} gxf4 {[%emt 0:01:14]} 29. gxf4 {[%emt 0:00:25]} Bd8 {[%emt 0:
00:00]} 30. Nb2 {[%emt 0:02:37]} Bd7 {[%emt 0:01:07]} 31. Nd1 {[%emt 0:01:37]}
Bh4 {[%emt 0:00:37]} 32. Qd2 {[%emt 0:03:33]} a4 {[%emt 0:02:33]} 33. Nc3 {
[%emt 0:06:32]} a3 {[%emt 0:04:13]} 34. Qg2 {[%emt 0:03:17]} Be6 {[%emt 0:00:
00]} 35. Bb1 {[%emt 0:01:49]} Qb4 {[%emt 0:01:36]} 36. Qc2 {[%emt 0:00:45]} Bf5
{[%emt 0:04:22]} 37. Qc1 {[%emt 0:04:59]} Bxb1 {[%emt 0:07:00]} 38. Nxb1 {
[%emt 0:00:10]} Qxb5 {[%emt 0:01:36]} 39. Qxa3+ {[%emt 0:01:23]} Be7 {[%emt 0:
00:00]} 40. Qa8+ {[%emt 0:01:23]} Kg7 {[%emt 0:00:02]} 41. Qa2 {[%emt 0:30:30]}
Qc4 {[%emt 0:30:30]} 42. Qg2+ {[%emt 0:00:30]} Kf8 {[%emt 0:01:44]} 43. Nd2 {
[%emt 0:02:01]} Qd3 {[%emt 0:00:09]} 44. Nf1 {[%emt 0:00:36]} b5 {[%emt 0:00:
00]} 45. Kg1 {[%emt 0:00:17]} Ba3 {[%emt 0:00:32]} 46. Qxd5 {[%emt 0:00:31]} b4
{[%emt 0:00:37]} 47. f5 {[%emt 0:00:00]} Kg8 {[%emt 0:00:00]} 48. Qg2+ {
[%emt 0:00:00]} Kh7 {[%emt 0:00:00]} 49. h4 {[%emt 0:00:00]} Bc1 {[%emt 0:00:
00]} 50. Qd5 {[%emt 0:00:00]} Bxe3+ {[%emt 0:00:00]} 51. Nxe3 {[%emt 0:00:00]}
Qxe3+ {[%emt 0:00:00]} 52. Kg2 {[%emt 0:00:00]} Kg7 {[%emt 0:00:00]} 53. f6+ {
[%emt 0:00:00]} Kg6 {[%emt 0:00:00]} 54. h5+ {[%emt 0:00:00]} Kxf6 {[%emt 0:00:
00]} 55. Qd6+ {[%emt 0:00:00]} Qe6 {[%emt 0:00:00]} 56. Qxb4 {[%emt 0:00:00]}
Qg4+ {[%emt 0:00:00]} 57. Kf2 {[%emt 0:00:00]} Qxh5 {[%emt 0:00:00]} 58. Qd6+ {
[%emt 0:00:00]} Kg7 {[%emt 0:00:00]} 59. Qg3+ {[%emt 0:00:00]} Qg6 {[%emt 0:00:
00]} 60. Qc3 {[%emt 0:00:00]} h5 {[%emt 0:00:00]} 61. Ke1 {[%emt 0:00:52]} Qe4+
{[%emt 0:00:00]} 62. Kf1 {[%emt 0:00:33]} f6 {[%emt 0:00:00]} 63. Qg3+ {
[%emt 0:00:32]} Qg4 {[%emt 0:00:00]} 64. Qc7+ {[%emt 0:00:11]} Kg6 {[%emt 0:00:
00]} 65. Qd8 {[%emt 0:00:38]} h4 {[%emt 0:00:00]} 66. Qg8+ {[%emt 0:00:23]} Kf5
{[%emt 0:00:00]} 67. Qc8+ {[%emt 0:00:18]} Kf4 {[%emt 0:00:00]} 68. Qc7+ {
[%emt 0:00:18]} Ke4 {[%emt 0:00:00]} 69. Qe7+ {[%emt 0:00:19]} Kf5 {[%emt 0:00:
00]} 70. Qd7+ {[%emt 0:00:09]} Kg5 {[%emt 0:00:00]} 71. Qg7+ {[%emt 0:00:08]}
1/2-1/2

[Event "44th Chess Olympiad Women 2022"]
[Site "Chennai"]
[Date "2022.08.05"]
[Round "7.40"]
[White "Shuqja, Klean"]
[Black "Ampaire Shakira"]
[Result "1-0"]
[WhiteElo "1883"]
[BlackElo "1666"]
[Annotator "NA"]
[PlyCount "141"]
[EventDate "2022.??.??"]
[TimeControl "60"]

1. e4 {[%emt 0:00:02]} e5 {[%emt 0:03:47]} 2. Nf3 {[%emt 0:00:03]} Nc6 {
[%emt 0:00:41]} 3. Bb5 {[%emt 0:00:03]} d6 {[%emt 0:00:58]} 4. O-O {[%emt 0:00:
00]} Bd7 {[%emt 0:01:49]} 5. c3 {[%emt 0:00:21]} Nf6 {[%emt 0:00:24]} 6. d3 {
[%emt 0:01:21]} Be7 {[%emt 0:00:28]} 7. Nbd2 {[%emt 0:00:11]} O-O {[%emt 0:00:
00]} 8. Re1 {[%emt 0:00:17]} Re8 {[%emt 0:03:45]} 9. Nf1 {[%emt 0:00:20]} h6 {
[%emt 0:03:27]} 10. Ng3 {[%emt 0:00:14]} Kh7 {[%emt 0:02:19]} 11. h3 {[%emt 0:
00:00]} a6 {[%emt 0:02:37]} 12. Ba4 {[%emt 0:01:09]} b5 {[%emt 0:01:26]} 13.
Bc2 {[%emt 0:00:49]} b4 {[%emt 0:06:57]} 14. d4 {[%emt 0:02:21]} bxc3 {[%emt 0:
00:00]} 15. bxc3 {[%emt 0:04:12]} g6 {[%emt 0:02:27]} 16. Nh2 {[%emt 0:19:27]}
Ng8 {[%emt 0:13:06]} 17. dxe5 {[%emt 0:16:00]} Nxe5 {[%emt 0:01:35]} 18. f4 {
[%emt 0:01:55]} Nc6 {[%emt 0:06:47]} 19. Qd5 {[%emt 0:03:38]} Kg7 {[%emt 0:00:
00]} 20. Bb3 {[%emt 0:09:26]} Rf8 {[%emt 0:00:28]} 21. e5 {[%emt 0:01:50]} Bh4
{[%emt 0:07:22]} 22. Qf3 {[%emt 0:05:20]} Nge7 {[%emt 0:06:09]} 23. Ba3 {
[%emt 0:03:02]} Nf5 {[%emt 0:01:23]} 24. Nxf5+ {[%emt 0:01:01]} Bxf5 {[%emt 0:
00:00]} 25. g3 {[%emt 0:02:23]} Na7 {[%emt 0:02:27]} 26. gxh4 {[%emt 0:00:52]}
Qxh4 {[%emt 0:00:23]} 27. Kg2 {[%emt 0:02:00]} Nb5 {[%emt 0:00:49]} 28. Bb2 {
[%emt 0:01:13]} dxe5 {[%emt 0:01:00]} 29. Qg3 {[%emt 0:11:21]} Qf6 {[%emt 0:00:
00]} 30. fxe5 {[%emt 0:01:36]} Qc6+ {[%emt 0:00:35]} 31. Qf3 {[%emt 0:00:18]}
Qc5 {[%emt 0:02:34]} 32. a4 {[%emt 0:01:42]} Rfd8 {[%emt 0:00:20]} 33. axb5 {
[%emt 0:07:38]} Rd3 {[%emt 0:01:25]} 34. Qe2 {[%emt 0:02:42]} Bxh3+ {[%emt 0:
00:00]} 35. Kh1 {[%emt 0:00:04]} Qxb5 {[%emt 0:00:50]} 36. e6 {[%emt 0:01:26]}
Qc6+ {[%emt 0:01:31]} 37. Qe4 {[%emt 0:00:31]} Qxe4+ {[%emt 0:02:18]} 38. Rxe4
{[%emt 0:00:01]} fxe6 {[%emt 0:00:17]} 39. Rd1 {[%emt 0:00:58]} Rg3 {[%emt 0:
00:00]} 40. Rg1 {[%emt 0:00:31]} Rd3 {[%emt 0:01:47]} 41. Rd4 {[%emt 0:01:46]}
Bf5 {[%emt 0:05:27]} 42. Rd1 {[%emt 0:09:39]} Rxd4 {[%emt 0:04:42]} 43. Rxd4 {
[%emt 0:03:03]} e5 {[%emt 0:00:18]} 44. Rc4 {[%emt 0:04:15]} Rb8 {[%emt 0:00:
00]} 45. Rb4 {[%emt 0:02:39]} Rd8 {[%emt 0:01:01]} 46. Ng4 {[%emt 0:02:28]} a5
{[%emt 0:00:49]} 47. Rc4 {[%emt 0:00:38]} Bxg4 {[%emt 0:01:51]} 48. Rxg4 {
[%emt 0:00:10]} Rb8 {[%emt 0:00:23]} 49. c4 {[%emt 0:06:24]} Rxb3 {[%emt 0:00:
00]} 50. Bxe5+ {[%emt 0:00:04]} Kf7 {[%emt 0:00:26]} 51. Bxc7 {[%emt 0:00:16]}
a4 {[%emt 0:00:24]} 52. c5 {[%emt 0:02:41]} a3 {[%emt 0:00:30]} 53. Ra4 {
[%emt 0:00:34]} Rb1+ {[%emt 0:01:07]} 54. Kg2 {[%emt 0:00:04]} Rb2+ {[%emt 0:
00:00]} 55. Kf3 {[%emt 0:01:05]} a2 {[%emt 0:00:32]} 56. Ke3 {[%emt 0:01:40]}
Ke6 {[%emt 0:01:26]} 57. Kd3 {[%emt 0:00:41]} Kd5 {[%emt 0:02:57]} 58. Bd6 {
[%emt 0:00:11]} g5 {[%emt 0:04:00]} 59. Kc3 {[%emt 0:00:08]} Re2 {[%emt 0:00:
00]} 60. Kb3 {[%emt 0:00:55]} g4 {[%emt 0:00:48]} 61. Rxa2 {[%emt 0:01:04]}
Rxa2 {[%emt 0:03:31]} 62. Kxa2 {[%emt 0:00:01]} h5 {[%emt 0:01:34]} 63. Kb3 {
[%emt 0:00:19]} g3 {[%emt 0:01:29]} 64. Kb4 {[%emt 0:00:35]} h4 {[%emt 0:00:13]
} 65. Kb5 {[%emt 0:00:14]} Ke4 {[%emt 0:00:08]} 66. c6 {[%emt 0:00:14]} Kf3 {
[%emt 0:00:07]} 67. c7 {[%emt 0:00:08]} h3 {[%emt 0:00:03]} 68. c8=Q {[%emt 0:
00:00]} h2 {[%emt 0:00:18]} 69. Qh3 {[%emt 0:00:31]} h1=Q {[%emt 0:00:23]} 70.
Qxh1+ {[%emt 0:00:05]} g2 {[%emt 0:00:01]} 71. Qg1 {[%emt 0:00:11]} 1-0

[Event "44th Chess Olympiad Women 2022"]
[Site "Chennai"]
[Date "2022.08.05"]
[Round "7.41"]
[White "Kannappan, Sigappi"]
[Black "Cooke, Suzie G."]
[Result "0-1"]
[WhiteElo "1914"]
[BlackElo "1936"]
[Annotator "NA RC"]
[PlyCount "96"]
[EventDate "2022.??.??"]
[TimeControl "60"]

1. e4 {[%emt 0:00:29]} e6 {[%emt 0:00:06]} 2. d4 {[%emt 0:00:04]} d5 {[%emt 0:
00:00]} 3. Nc3 {[%emt 0:00:05]} Nf6 {[%emt 0:00:09]} 4. Bg5 {[%emt 0:00:05]}
Be7 {[%emt 0:05:05]} 5. e5 {[%emt 0:00:07]} Nfd7 {[%emt 0:00:09]} 6. h4 {
[%emt 0:00:10]} a6 {[%emt 0:00:25]} 7. Qg4 {[%emt 0:00:22]} Kf8 {[%emt 0:05:37]
} 8. Bxe7+ {[%emt 0:17:28]} Qxe7 {[%emt 0:00:08]} 9. O-O-O {[%emt 0:05:49]} c5
{[%emt 0:01:40]} 10. f4 {[%emt 0:02:19]} cxd4 {[%emt 0:05:10]} 11. Nce2 {
[%emt 0:00:43]} Nc6 {[%emt 0:05:55]} 12. Nxd4 {[%emt 0:05:06]} Qb4 {[%emt 0:00:
00]} 13. Nge2 {[%emt 0:12:55]} Nc5 {[%emt 0:04:49]} 14. Rh3 {[%emt 0:14:41]}
Ne4 {[%emt 0:09:49]} 15. Nxc6 {[%emt 0:04:08]} bxc6 {[%emt 0:00:14]} 16. Rd4 {
[%emt 0:01:50]} Qe1+ {[%emt 0:01:03]} 17. Rd1 {[%emt 0:00:06]} Qxd1+ {[%emt 0:
00:00]} 18. Kxd1 {[%emt 0:00:31]} Nf2+ {[%emt 0:00:05]} 19. Kd2 {[%emt 0:02:36]
} Nxg4 {[%emt 0:00:07]} 20. Rc3 {[%emt 0:00:48]} Nh2 {[%emt 0:00:44]} 21. Ng3 {
[%emt 0:00:06]} Nxf1+ {[%emt 0:00:05]} 22. Nxf1 {[%emt 0:00:03]} Bd7 {[%emt 0:
00:00]} 23. Rb3 {[%emt 0:00:31]} Ke7 {[%emt 0:00:33]} 24. Rg3 {[%emt 0:01:12]}
g6 {[%emt 0:00:13]} 25. Ne3 {[%emt 0:02:03]} h5 {[%emt 0:00:11]} 26. c4 {
[%emt 0:00:56]} Rhb8 {[%emt 0:02:50]} 27. b3 {[%emt 0:01:08]} a5 {[%emt 0:00:
00]} 28. cxd5 {[%emt 0:07:34]} cxd5 {[%emt 0:00:00]} 29. Nc2 {[%emt 0:00:16]}
Kf8 {[%emt 0:00:00]} 30. Rg5 {[%emt 0:01:19]} Ra7 {[%emt 0:00:59]} 31. g4 {
[%emt 0:00:14]} hxg4 {[%emt 0:00:16]} 32. Rxg4 {[%emt 0:00:05]} Ke7 {[%emt 0:
00:00]} 33. Rg3 {[%emt 0:03:16]} Rh8 {[%emt 0:01:19]} 34. Rh3 {[%emt 0:00:09]}
f6 {[%emt 0:00:29]} 35. Nd4 {[%emt 0:00:31]} Rb7 {[%emt 0:03:33]} 36. Nf3 {
[%emt 0:03:00]} Rb4 {[%emt 0:04:52]} 37. exf6+ {[%emt 0:01:42]} Kxf6 {[%emt 0:
00:00]} 38. Ne5 {[%emt 0:00:05]} Be8 {[%emt 0:00:35]} 39. Nd3 {[%emt 0:02:02]}
Re4 {[%emt 0:00:26]} 40. a3 {[%emt 0:02:17]} Bb5 {[%emt 0:00:34]} 41. Nc5 {
[%emt 0:35:29]} Rxf4 {[%emt 0:30:30]} 42. Re3 {[%emt 0:00:28]} e5 {[%emt 0:00:
00]} 43. a4 {[%emt 0:00:29]} d4 {[%emt 0:06:09]} 44. Ne4+ {[%emt 0:05:16]} Ke6
{[%emt 0:03:10]} 45. Re1 {[%emt 0:00:00]} Kd5 {[%emt 0:00:00]} 46. Ng5 {
[%emt 0:00:00]} Rf2+ {[%emt 0:00:00]} 47. Kd1 {[%emt 0:00:00]} Bd3 {[%emt 0:00:
00]} 48. Nh3 {[%emt 0:00:00]} Ra2 {[%emt 0:00:00]} 0-1

[Event "44th Chess Olympiad Women 2022"]
[Site "Chennai"]
[Date "2022.08.05"]
[Round "7.41"]
[White "Li, Joy Ching"]
[Black "Lampard, Alice"]
[Result "1-0"]
[WhiteElo "1386"]
[BlackElo "1729"]
[Annotator "NA RC"]
[PlyCount "41"]
[EventDate "2022.??.??"]
[TimeControl "60"]

1. Nf3 {[%emt 0:00:03]} c5 {[%emt 0:00:10]} 2. g3 {[%emt 0:00:07]} Nc6 {
[%emt 0:00:12]} 3. d4 {[%emt 0:00:13]} cxd4 {[%emt 0:01:46]} 4. Nxd4 {[%emt 0:
00:00]} Nf6 {[%emt 0:04:21]} 5. Bg2 {[%emt 0:00:42]} d5 {[%emt 0:02:01]} 6. O-O
{[%emt 0:01:00]} e6 {[%emt 0:02:30]} 7. c4 {[%emt 0:04:33]} Bd7 {[%emt 0:09:53]
} 8. Nc3 {[%emt 0:05:39]} Bb4 {[%emt 0:08:27]} 9. cxd5 {[%emt 0:06:01]} Nxd4 {
[%emt 0:05:22]} 10. Qxd4 {[%emt 0:02:07]} Bxc3 {[%emt 0:06:40]} 11. bxc3 {
[%emt 0:03:53]} exd5 {[%emt 0:06:57]} 12. Ba3 {[%emt 0:01:39]} Be6 {[%emt 0:00:
00]} 13. Rfd1 {[%emt 0:07:11]} Qc7 {[%emt 0:07:00]} 14. Rab1 {[%emt 0:06:33]}
b6 {[%emt 0:02:16]} 15. c4 {[%emt 0:03:44]} Rd8 {[%emt 0:08:42]} 16. cxd5 {
[%emt 0:13:38]} Bxd5 {[%emt 0:00:50]} 17. Rbc1 {[%emt 0:01:02]} Qd7 {[%emt 0:
00:00]} 18. Bxd5 {[%emt 0:00:24]} Qxd5 {[%emt 0:00:53]} 19. Qa4+ {[%emt 0:00:
00]} b5 {[%emt 0:00:15]} 20. Rxd5 {[%emt 0:00:17]} bxa4 {[%emt 0:00:25]} 21.
Re5+ {[%emt 0:00:06]} 1-0

[Event "44th Chess Olympiad Women 2022"]
[Site "Chennai"]
[Date "2022.08.05"]
[Round "7.41"]
[White "Reid, Caitlin"]
[Black "Lam, Ka Yan"]
[Result "0-1"]
[WhiteElo "1437"]
[BlackElo "1223"]
[Annotator "NA"]
[PlyCount "64"]
[EventDate "2022.??.??"]
[TimeControl "60"]

1. e4 {[%emt 0:00:03]} e5 {[%emt 0:00:35]} 2. Nf3 {[%emt 0:00:08]} Nf6 {
[%emt 0:01:29]} 3. Bc4 {[%emt 0:00:40]} Nxe4 {[%emt 0:02:16]} 4. d3 {[%emt 0:
00:00]} Nf6 {[%emt 0:05:26]} 5. Nxe5 {[%emt 0:02:54]} d5 {[%emt 0:02:37]} 6.
Bb3 {[%emt 0:00:24]} Bd6 {[%emt 0:06:45]} 7. Bf4 {[%emt 0:01:56]} O-O {[%emt 0:
00:00]} 8. O-O {[%emt 0:00:49]} Re8 {[%emt 0:03:54]} 9. d4 {[%emt 0:02:48]} c6
{[%emt 0:12:51]} 10. Nd2 {[%emt 0:01:29]} Bf5 {[%emt 0:05:52]} 11. Bg3 {
[%emt 0:11:02]} Nbd7 {[%emt 0:06:24]} 12. Nxf7 {[%emt 0:04:01]} Kxf7 {[%emt 0:
00:00]} 13. Bxd6 {[%emt 0:01:14]} a5 {[%emt 0:01:17]} 14. c4 {[%emt 0:00:21]}
Bd3 {[%emt 0:06:17]} 15. Re1 {[%emt 0:00:46]} Rxe1+ {[%emt 0:06:27]} 16. Qxe1 {
[%emt 0:00:18]} a4 {[%emt 0:00:59]} 17. Qe3 {[%emt 0:04:58]} axb3 {[%emt 0:00:
00]} 18. Qxd3 {[%emt 0:00:17]} bxa2 {[%emt 0:01:29]} 19. Ba3 {[%emt 0:04:04]}
Qe8 {[%emt 0:06:06]} 20. Rxa2 {[%emt 0:00:50]} Qe1+ {[%emt 0:00:58]} 21. Nf1 {
[%emt 0:00:12]} Ne4 {[%emt 0:02:12]} 22. Qf3+ {[%emt 0:01:47]} Ndf6 {[%emt 0:
00:00]} 23. b4 {[%emt 0:01:04]} Kg8 {[%emt 0:06:40]} 24. Re2 {[%emt 0:11:19]}
Qd1 {[%emt 0:00:52]} 25. cxd5 {[%emt 0:01:35]} Rxa3 {[%emt 0:01:19]} 26. Qxa3 {
[%emt 0:04:03]} Qxe2 {[%emt 0:00:08]} 27. Qa8+ {[%emt 0:00:06]} Kf7 {[%emt 0:
00:00]} 28. Qxb7+ {[%emt 0:00:03]} Kg6 {[%emt 0:00:26]} 29. h3 {[%emt 0:02:38]}
cxd5 {[%emt 0:01:38]} 30. f3 {[%emt 0:01:48]} Qf2+ {[%emt 0:01:27]} 31. Kh2 {
[%emt 0:00:06]} Ng5 {[%emt 0:00:45]} 32. Ng3 {[%emt 0:00:41]} Nxf3+ {[%emt 0:
00:00]} 0-1

[Event "44th Chess Olympiad Women 2022"]
[Site "Chennai"]
[Date "2022.08.05"]
[Round "7.41"]
[White "Roy, Ali"]
[Black "Deng, Jing Xin Crystal"]
[Result "1/2-1/2"]
[WhiteElo "1893"]
[BlackElo "1914"]
[Annotator "NA RC"]
[PlyCount "62"]
[EventDate "2022.??.??"]
[TimeControl "60"]

1. Nf3 {[%emt 0:00:04]} d5 {[%emt 0:00:15]} 2. g3 {[%emt 0:00:05]} c5 {[%emt 0:
00:00]} 3. Bg2 {[%emt 0:00:09]} Nf6 {[%emt 0:00:05]} 4. O-O {[%emt 0:00:13]}
Nc6 {[%emt 0:00:05]} 5. d3 {[%emt 0:00:21]} e5 {[%emt 0:00:05]} 6. Nbd2 {
[%emt 0:00:43]} Be7 {[%emt 0:00:09]} 7. e4 {[%emt 0:00:22]} O-O {[%emt 0:00:44]
} 8. exd5 {[%emt 0:04:08]} Nxd5 {[%emt 0:00:08]} 9. Nc4 {[%emt 0:01:42]} f6 {
[%emt 0:01:08]} 10. a4 {[%emt 0:02:35]} Be6 {[%emt 0:01:02]} 11. Bd2 {[%emt 0:
00:00]} Rb8 {[%emt 0:02:32]} 12. Re1 {[%emt 0:00:28]} Qd7 {[%emt 0:02:27]} 13.
Ne3 {[%emt 0:05:37]} Rbd8 {[%emt 0:11:12]} 14. Qe2 {[%emt 0:03:30]} Qc8 {
[%emt 0:12:16]} 15. h4 {[%emt 0:04:15]} Nd4 {[%emt 0:06:08]} 16. Nxd4 {[%emt 0:
00:00]} cxd4 {[%emt 0:00:07]} 17. Nc4 {[%emt 0:00:41]} Bg4 {[%emt 0:12:30]} 18.
f3 {[%emt 0:03:52]} Bh3 {[%emt 0:01:40]} 19. f4 {[%emt 0:01:50]} Bxg2 {[%emt 0:
00:00]} 20. Qxg2 {[%emt 0:00:56]} exf4 {[%emt 0:02:09]} 21. gxf4 {[%emt 0:00:
00]} Qf5 {[%emt 0:05:15]} 22. Kh1 {[%emt 0:05:38]} Rd7 {[%emt 0:05:05]} 23. Re4
{[%emt 0:02:49]} Qh5 {[%emt 0:08:04]} 24. f5 {[%emt 0:07:18]} Qxf5 {[%emt 0:00:
00]} 25. Rf1 {[%emt 0:00:37]} Qh5 {[%emt 0:01:19]} 26. Rxd4 {[%emt 0:03:32]}
Bc5 {[%emt 0:01:58]} 27. Rg4 {[%emt 0:09:42]} f5 {[%emt 0:02:30]} 28. Rg3 {
[%emt 0:01:53]} Qxh4+ {[%emt 0:05:06]} 29. Rh3 {[%emt 0:00:24]} Qf6 {[%emt 0:
00:00]} 30. Bg5 {[%emt 0:02:33]} Qe6 {[%emt 0:01:05]} 31. Qh2 {[%emt 0:02:00]}
g6 {[%emt 0:02:03]} 1/2-1/2

[Event "44th Chess Olympiad Women 2022"]
[Site "Chennai"]
[Date "2022.08.05"]
[Round "7.42"]
[White "Clarke, Adani"]
[Black "Grishina, Alexandra"]
[Result "1-0"]
[WhiteElo "1812"]
[BlackElo "2012"]
[Annotator "NA RC"]
[PlyCount "109"]
[EventDate "2022.??.??"]
[TimeControl "60"]

1. d4 {[%emt 0:00:03]} e6 {[%emt 0:00:51]} 2. c4 {[%emt 0:00:14]} f5 {[%emt 0:
00:00]} 3. Nc3 {[%emt 0:00:59]} Bb4 {[%emt 0:01:47]} 4. Nf3 {[%emt 0:02:28]}
Nf6 {[%emt 0:00:17]} 5. Bd2 {[%emt 0:02:17]} Bxc3 {[%emt 0:06:32]} 6. Bxc3 {
[%emt 0:00:59]} d6 {[%emt 0:02:14]} 7. g3 {[%emt 0:03:04]} Ne4 {[%emt 0:05:29]}
8. Qc2 {[%emt 0:02:23]} Nd7 {[%emt 0:03:11]} 9. Bg2 {[%emt 0:00:22]} Ndf6 {
[%emt 0:01:46]} 10. Nd2 {[%emt 0:03:34]} Nxd2 {[%emt 0:03:53]} 11. Qxd2 {
[%emt 0:01:07]} O-O {[%emt 0:01:05]} 12. Qd3 {[%emt 0:04:29]} d5 {[%emt 0:00:
00]} 13. O-O {[%emt 0:02:21]} c6 {[%emt 0:22:25]} 14. b3 {[%emt 0:04:45]} a5 {
[%emt 0:03:49]} 15. f3 {[%emt 0:06:11]} b6 {[%emt 0:05:55]} 16. Bb2 {[%emt 0:
00:00]} Ra7 {[%emt 0:01:28]} 17. Qc2 {[%emt 0:02:09]} Ba6 {[%emt 0:05:27]} 18.
Rfe1 {[%emt 0:07:29]} Rc7 {[%emt 0:03:19]} 19. Rac1 {[%emt 0:01:42]} Rff7 {
[%emt 0:02:19]} 20. Qd2 {[%emt 0:02:54]} Rfd7 {[%emt 0:01:11]} 21. c5 {[%emt 0:
00:00]} Qb8 {[%emt 0:03:12]} 22. cxb6 {[%emt 0:03:05]} Qxb6 {[%emt 0:00:19]}
23. Bc3 {[%emt 0:00:16]} Qa7 {[%emt 0:04:53]} 24. Bxa5 {[%emt 0:00:45]} Rc8 {
[%emt 0:00:34]} 25. Bb4 {[%emt 0:01:50]} Rdd8 {[%emt 0:03:22]} 26. Bc5 {
[%emt 0:01:43]} Qf7 {[%emt 0:00:43]} 27. Rc2 {[%emt 0:04:50]} Qh5 {[%emt 0:00:
00]} 28. Rec1 {[%emt 0:01:39]} Rd7 {[%emt 0:01:14]} 29. Bb4 {[%emt 0:03:59]}
Bb7 {[%emt 0:00:31]} 30. Qe3 {[%emt 0:00:41]} Kf7 {[%emt 0:01:05]} 31. Ba5 {
[%emt 0:01:52]} g5 {[%emt 0:00:33]} 32. Qd2 {[%emt 0:01:53]} Rg8 {[%emt 0:00:
00]} 33. Kf2 {[%emt 0:05:42]} f4 {[%emt 0:02:13]} 34. gxf4 {[%emt 0:05:02]}
Qh4+ {[%emt 0:00:45]} 35. Kg1 {[%emt 0:04:02]} gxf4 {[%emt 0:00:25]} 36. e3 {
[%emt 0:01:51]} Nh5 {[%emt 0:04:29]} 37. Qf2 {[%emt 0:01:37]} Qg5 {[%emt 0:00:
00]} 38. Bd2 {[%emt 0:00:32]} Ke8 {[%emt 0:01:21]} 39. exf4 {[%emt 0:02:19]}
Nxf4 {[%emt 0:00:09]} 40. Bxf4 {[%emt 0:00:06]} Qxf4 {[%emt 0:00:08]} 41. Kh1 {
[%emt 0:30:25]} Rdg7 {[%emt 0:04:48]} 42. Bh3 {[%emt 0:00:00]} Rg6 {[%emt 0:00:
00]} 43. Bg4 {[%emt 0:00:00]} Rf6 {[%emt 0:01:22]} 44. Qh4 {[%emt 0:00:00]} Kf8
{[%emt 0:03:30]} 45. Qxh7 {[%emt 0:00:00]} Rg7 {[%emt 0:02:25]} 46. Qh8+ {
[%emt 0:00:00]} Rg8 {[%emt 0:00:32]} 47. Qh7 {[%emt 0:00:00]} Rg7 {[%emt 0:00:
00]} 48. Qd3 {[%emt 0:00:00]} e5 {[%emt 0:04:34]} 49. dxe5 {[%emt 0:00:00]}
Qxe5 {[%emt 0:00:02]} 50. Re2 {[%emt 0:00:00]} Qd6 {[%emt 0:09:10]} 51. Rce1 {
[%emt 0:00:00]} Rh6 {[%emt 0:00:35]} 52. Re8+ {[%emt 0:00:00]} Kf7 {[%emt 0:00:
00]} 53. Qf5+ {[%emt 0:00:07]} Rf6 {[%emt 0:01:35]} 54. Bh5+ {[%emt 0:00:26]}
Rgg6 {[%emt 0:00:31]} 55. Bxg6+ {[%emt 0:00:09]} 1-0